lending/lending_fUSD_20260110
["ID","MTS","AMOUNT","RATE_DAILY","PERIOD"]
[401215535,1768050634464,-1000.0,0.00017099,2]
[401215536,1768050634474,-500.0,0.00017099,2]
[401215537,1768050634483,-500.0,0.00017099,2]
[401215538,1768050634492,-1000.0,0.00017099,2]
[401215539,1768050634502,-500.0,0.00017099,2]
[401215540,1768050634511,-500.0,0.00017099,2]
[401215541,1768050634523,-1000.0,0.00017099,2]
[401215542,1768050634533,-500.0,0.00017099,2]
[401215543,1768050634542,-500.0,0.00017099,2]
[401215544,1768050634553,-1000.0,0.00017099,2]
[401215545,1768050634563,-500.0,0.00017099,2]
[401215546,1768050634572,-500.0,0.00017099,2]
[401215547,1768050634582,-1000.0,0.00017099,2]
[401215548,1768050634591,-181.08010149,0.00017099,2]
[401215549,1768050634602,-500.0,0.00017099,2]
[401215550,1768050634612,-500.0,0.00017099,2]
[401215551,1768050634621,-1000.0,0.00017099,2]
[401215552,1768050634630,-250.0,0.00017099,2]
[401215553,1768050634640,-500.0,0.00017099,2]
[401215554,1768050634650,-500.0,0.00017099,2]
[401215555,1768050634659,-1000.0,0.00017099,2]
[401215556,1768050634669,-250.0,0.00017099,2]
[401215557,1768050634678,-500.0,0.00017099,2]
[401215558,1768050634688,-500.0,0.00017099,2]
[401215559,1768050634698,-1000.0,0.00017099,2]
[401215560,1768050634708,-250.0,0.00017099,2]
[401215561,1768050634717,-500.0,0.00017099,2]
[401215562,1768050634727,-1000.0,0.00017099,2]
[401215563,1768050634737,-500.0,0.00017099,2]
[401215564,1768050634747,-250.0,0.00017099,2]
[401215565,1768050634756,-500.0,0.00017099,2]
[401215566,1768050634766,-1000.0,0.00017099,2]
[401215567,1768050634775,-250.0,0.00017099,2]
[401215568,1768050634784,-250.0,0.00017099,2]
[401215570,1768050634794,-250.0,0.00017099,2]
[401215571,1768050634804,-250.0,0.00017099,2]
[401215572,1768050634814,-250.0,0.00017099,2]
[401215573,1768050634824,-250.0,0.00017099,2]
[401215574,1768050634833,-250.0,0.00017099,2]
[401215575,1768050634843,-496.47127164,0.00017099,2]
[401215576,1768050634853,-250.0,0.00017099,2]
[401215577,1768050634863,-250.0,0.00017099,2]
[401215578,1768050634872,-250.0,0.00017099,2]
[401215579,1768050634882,-623.58710448,0.00017099,2]
[401215580,1768050634892,-250.0,0.00017099,2]
[401215581,1768050634902,-250.0,0.00017099,2]
[401215582,1768050634914,-250.0,0.00017099,2]
[401215583,1768050634924,-250.0,0.00017099,2]
[401215584,1768050634934,-288.06928003,0.00017099,2]
[401215585,1768050634943,-998.0,0.00017099,2]
[401215586,1768050634953,-250.0,0.00017099,2]
[401215587,1768050634963,-250.0,0.00017099,2]
[401215588,1768050634972,-250.0,0.00017099,2]
[401215589,1768050634982,-151.0,0.00017099,2]
[401215590,1768050634991,-250.0,0.00017099,2]
[401215591,1768050635001,-250.0,0.00017099,2]
[401215592,1768050635011,-250.0,0.00017099,2]
[401215593,1768050635020,-250.0,0.00017099,2]
[401215594,1768050635030,-250.0,0.00017099,2]
[401215595,1768050635040,-250.0,0.00017099,2]
[401215596,1768050635050,-250.0,0.00017099,2]
[401215597,1768050635060,-250.0,0.00017099,2]
[401215598,1768050635069,-250.0,0.00017099,2]
[401215599,1768050635079,-250.0,0.00017099,2]
[401215600,1768050635089,-250.0,0.00017099,2]
[401215601,1768050635098,-250.0,0.00017099,2]
[401215602,1768050635108,-250.0,0.00017099,2]
[401215603,1768050635117,-322.6107,0.00017099,2]
[401215604,1768050635127,-250.0,0.00017099,2]
[401215605,1768050635136,-250.0,0.00017099,2]
[401215606,1768050635150,-250.0,0.00017099,2]
[401215607,1768050635159,-250.0,0.00017099,2]
[401215608,1768050635169,-260.89005731,0.00017099,2]
[401215609,1768050635179,-250.0,0.00017099,2]
[401215610,1768050635190,-2000.0,0.00017099,2]
[401215611,1768050635199,-250.0,0.00017099,2]
[401215612,1768050635208,-2000.0,0.00017099,2]
[401215613,1768050635221,-250.0,0.00017099,2]
[401215614,1768050635231,-2000.0,0.00017099,2]
[401215615,1768050635241,-250.0,0.00017099,2]
[401215616,1768050635251,-2000.0,0.00017099,2]
[401215617,1768050635260,-250.0,0.00017099,2]
[401215618,1768050635270,-2000.0,0.00017099,2]
[401215619,1768050635280,-2000.0,0.00017099,2]
[401215621,1768050635290,-2000.0,0.00017099,2]
[401215622,1768050635299,-620.0,0.00017099,2]
[401215623,1768050635310,-2000.0,0.00017099,2]
[401215624,1768050635319,-2000.0,0.00017099,2]
[401215625,1768050635329,-2000.0,0.00017099,2]
[401215626,1768050635339,-2000.0,0.00017099,2]
[401215627,1768050635349,-2000.0,0.00017099,2]
[401215628,1768050635360,-2000.0,0.00017099,2]
[401215629,1768050635370,-2000.0,0.00017099,2]
[401215630,1768050635380,-2000.0,0.00017099,2]
[401215631,1768050635390,-151.0,0.00017099,2]
[401215632,1768050635400,-150.0,0.000171,2]
[401215633,1768050635411,-150.0,0.0001713,2]
[401215634,1768050635420,-150.0,0.0001716,2]
[401215635,1768050635430,-150.0,0.0001719,2]
[401215636,1768050635439,-311.0,0.00017208,2]
[401215637,1768050635449,-150.0,0.0001722,2]
[401215638,1768050635459,-311.0,0.00017224,2]
[401215639,1768050635469,-854.34,0.00017232,2]
[401215640,1768050635479,-507.42464717,0.00017244,2]
[401215641,1768050635489,-150.0,0.0001725,2]
[401215642,1768050635499,-159.16121496,0.00017266,2]
[401215643,1768050635509,-150.0,0.0001728,2]
[401215644,1768050635519,-150.0,0.0001731,2]
[401215645,1768050635529,-150.0,0.0001734,2]
[401215646,1768050635539,-150.0,0.0001737,2]
[401215647,1768050635548,-150.0,0.000174,2]
[401215648,1768050635559,-150.0,0.0001743,2]
[401215649,1768050635569,-255.97089306,0.0001745,2]
[401215650,1768050635579,-150.0,0.0001746,2]
[401215651,1768050635588,-20670.0,0.0001746,2]
[401215652,1768050635597,-150.0,0.0001749,2]
[401215653,1768050635607,-2000.0,0.000175,2]
[401215654,1768050635617,-854.34,0.00017505,2]
[401215655,1768050635627,-150.0,0.0001752,2]
[401215656,1768050635637,-150.0,0.0001755,2]
[401215657,1768050635647,-507.42464717,0.00017572,2]
[401215658,1768050635656,-150.0,0.0001758,2]
[401215659,1768050635666,-1341.507,0.00017582,2]
[401215660,1768050635675,-187.603,0.00017582,2]
[401215661,1768050635685,-150.0,0.0001761,2]
[401215662,1768050635695,-748.91,0.0001762,2]
[401215663,1768050635704,-150.0,0.0001764,2]
[401215665,1768050635713,-7019.4075147,0.0001764,2]
[401215666,1768050636293,-13650.5924853,0.0001764,2]
[401215667,1768050636303,-5268.90491096,0.0001764,2]
[401215668,1768050636587,-370.0,0.00017643,2]
[401215669,1768050636598,-159.50121702,0.00017647,2]
[401215670,1768050636609,-187.78006525,0.00017647,2]
[401215671,1768050636619,-514.84070869,0.00017647,2]
[401215672,1768050636628,-182.40840008,0.00017647,2]
[401215673,1768050636638,-150.0,0.0001767,2]
[401215674,1768050636648,-1000.0,0.00017681,2]
[401215675,1768050636657,-1000.0,0.00017681,2]
[401215676,1768050636667,-250.0,0.00017699,2]
[401215677,1768050636676,-150.0,0.00017699,2]
[401215678,1768050636685,-150.0,0.00017699,2]
[401215680,1768050636694,-150.0,0.00017699,2]
[401215681,1768050636704,-152.08512416,0.00017699,2]
[401215682,1768050636714,-150.0,0.00017699,2]
[401215683,1768050636729,-151.05982543,0.00017699,2]
[401215684,1768050636739,-150.0,0.00017699,2]
[401215685,1768050636748,-150.0,0.00017699,2]
[401215686,1768050636758,-200.0,0.00017699,2]
[401215687,1768050636768,-150.0,0.00017699,2]
[401215688,1768050636778,-150.0,0.00017699,2]
[401215689,1768050636788,-150.0,0.00017699,2]
[401215690,1768050636798,-150.0,0.00017699,2]
[401215691,1768050636809,-150.0,0.00017699,2]
[401215692,1768050636819,-150.0,0.00017699,2]
[401215693,1768050636829,-150.0,0.000177,2]
[401215694,1768050636839,-1000.0,0.000177,2]
[401215695,1768050636849,-505.594,0.00017704,2]
[401215696,1768050636859,-1267.487,0.00017704,2]
[401215697,1768050636869,-915.241,0.00017704,2]
[401215698,1768050636879,-1202.614,0.00017704,2]
[401215699,1768050636888,-4820.0,0.00017704,2]
[401215700,1768050636898,-1312.0,0.00017704,2]
[401215701,1768050636908,-2441.065,0.00017704,2]
[401215702,1768050636922,-150.0,0.0001773,2]
[401215703,1768050636934,-168.2,0.00017734,2]
[401215704,1768050636946,-150.0,0.00017754,2]
[401215705,1768050636958,-150.0,0.00017754,2]
[401215706,1768050636968,-283.08689399,0.00017754,2]
[401215707,1768050636978,-150.0,0.00017754,2]
[401215708,1768050636987,-222.12982038,0.00017754,2]
[401215709,1768050636998,-150.0,0.0001776,2]
[401215710,1768050637008,-151.0,0.00017765,2]
[401215711,1768050637018,-201.93286099,0.00017778,2]
[401215712,1768050637029,-854.34,0.00017779,2]
[401215713,1768050637038,-150.0,0.0001779,2]
[401215714,1768050637048,-311.0,0.00017797,2]
[401215715,1768050637058,-1000.0,0.000178,2]
[401215716,1768050637068,-207.26988174,0.00017808,2]
[401215717,1768050637077,-500.0,0.00017808,2]
[401215718,1768050637086,-200.0,0.00017809,2]
[401215719,1768050637095,-200.0,0.00017809,2]
[401215720,1768050637105,-150.0,0.00017809,2]
[401215721,1768050637115,-150.0,0.0001782,2]
[401215723,1768050637125,-4000.0,0.0001782,2]
[401215724,1768050637134,-4000.0,0.0001782,2]
[401215725,1768050637147,-18572.22906189,0.0001782,2]
[401215726,1768050637165,-1056.03362672,0.0001782,2]
[401215727,1768050637176,-764.48554386,0.0001782,2]
[401215728,1768050637190,-277.25176753,0.0001782,2]
[401215729,1768050637199,-136.35268861,0.0001783,2]
[401215730,1768050637222,-626.31575954,0.0001783,2]
[401215731,1768050637233,-822.10562034,0.0001783,2]
[401215732,1768050637249,-1008.74102828,0.0001783,2]
[401215733,1768050637261,-1051.09770713,0.0001783,2]
[401215734,1768050637273,-355.3871961,0.0001783,2]
[401215735,1768050637282,-152.0,0.00017838,3]
[401215736,1768050637292,-151.0,0.00017843,2]
[401215737,1768050637302,-150.0,0.0001785,2]
[401215738,1768050637323,-200.0,0.00017855,2]
[401215739,1768050637333,-2000.0,0.00017856,2]
[401215740,1768050637343,-200.0,0.00017856,2]
[401215741,1768050637354,-4000.0,0.0001786,2]
[401215742,1768050637364,-523.6219018,0.00017863,2]
[401215743,1768050637374,-150.0,0.00017863,2]
[401215744,1768050637384,-1000.0,0.00017868,2]
[401215745,1768050637394,-150.0,0.0001788,2]
[401215746,1768050637404,-247.9909021,0.0001788,2]
[401215747,1768050637416,-3752.0090979,0.0001788,2]
[401215748,1768050637425,-255.97089306,0.000179,2]
[401215749,1768050637436,-1318.70000904,0.000179,2]
[401215750,1768050637448,-4443.51401426,0.000179,2]
[401215751,1768050637460,-4237.7859767,0.000179,2]
[401215752,1768050637470,-162.0,0.000179,3]
[401215753,1768050637480,-162.0,0.000179,3]
[401215754,1768050637491,-507.42464717,0.000179,2]
[401215755,1768050637500,-1000.0,0.000179,2]
[401215756,1768050637510,-501.75274035,0.000179,2]
[401215757,1768050637520,-501.75274024,0.000179,2]
[401215758,1768050637530,-501.75274024,0.000179,2]
[401215759,1768050637541,-501.75274024,0.000179,2]
[401215760,1768050637550,-501.75274024,0.000179,2]
[401215761,1768050637560,-501.75274024,0.000179,2]
[401215762,1768050637571,-501.75274024,0.000179,2]
[401215763,1768050637581,-501.75274024,0.000179,2]
[401215764,1768050637591,-501.75274024,0.000179,2]
[401215765,1768050637599,-501.75274024,0.000179,2]
[401215767,1768050637609,-501.75274024,0.000179,2]
[401215768,1768050637619,-501.75274024,0.000179,2]
[401215769,1768050637628,-210.0,0.00017905,2]
[401215770,1768050637638,-150.0,0.0001791,2]
[401215771,1768050637647,-4000.0,0.0001791,2]
[401215772,1768050637657,-151.0,0.00017922,2]
[401215773,1768050637667,-150.0,0.0001794,2]
[401215774,1768050637676,-21518.58387238,0.00017959,2]
[401215775,1768050637688,-8301.16846777,0.00017959,2]
[401215776,1768050637701,-9805.73974299,0.00017959,2]
[401215782,1768050638672,-500.0,0.00014947,2]
[401215783,1768050638682,-500.0,0.00014947,2]
[401215784,1768050638692,-500.0,0.00014947,2]
[401215785,1768050638702,-500.0,0.00014947,2]
[401215786,1768050638712,-188.98332652,0.00014947,2]
[401215787,1768050638724,-311.01667348,0.00014947,2]
[401215788,1768050638734,-153.42261072,0.00014947,2]
[401215789,1768050638758,-346.57738928,0.00014947,2]
[401215790,1768050638769,-500.0,0.00014947,2]
[401215791,1768050638779,-254.75352484,0.00014947,2]
[401215792,1768050638790,-500.0,0.00014947,2]
[401215793,1768050638800,-500.0,0.00014947,2]
[401215794,1768050638812,-500.0,0.00014947,2]
[401215795,1768050638823,-500.0,0.00014947,2]
[401215796,1768050638833,-500.0,0.00014947,2]
[401215797,1768050638844,-10192.63361974,0.00016544,2]
[401215798,1768050638855,-459.225,0.00016544,2]
[401215799,1768050638869,-2082.3635891,0.00016544,2]
[401215800,1768050638879,-3115.73166921,0.00017704,2]
[401215801,1768050638903,-1967.10609431,0.00017704,2]
[401215802,1768050638920,-731.46652924,0.00017704,2]
[401215803,1768050638932,-739.69570724,0.00017704,2]
[401215805,1768050638942,-5684.90148321,0.000179,2]
[401215806,1768050640275,-1273.216,0.00016883,2]
[401215807,1768050640288,-2158.4752107,0.00016883,2]
[401215808,1768050640299,-1538.20115761,0.00016883,2]
[401215809,1768050640328,-388.09645538,0.00016883,2]
[401215810,1768050640340,-637.2067149,0.00016883,2]
[401215811,1768050640352,-441.80539561,0.00016883,2]
[401215812,1768050640385,-6297.22127464,0.00016883,2]
[401215813,1768050640395,-21525.8995671,0.000179,2]
[401215814,1768050640405,-501.75274024,0.000179,2]
[401215815,1768050640415,-13839.60383176,0.00017959,2]
[401215816,1768050640425,-151.0,0.00017959,2]
[401215817,1768050640435,-236851.2266735,0.00017966,2]
[401215818,1768050640445,-162028.5222854,0.00017966,2]
[401215819,1768050640455,-70357.4942813,0.00017966,2]
[401215820,1768050640465,-8657.4182669,0.00017966,2]
[401215821,1768050640475,-150.0,0.0001797,2]
[401215822,1768050640485,-500.64146005,0.00017973,2]
[401215823,1768050640494,-281.91943671,0.00017973,2]
[401215824,1768050640504,-500.0,0.00017973,2]
[401215825,1768050640514,-500.0,0.00017973,2]
[401215826,1768050640524,-500.0,0.00017973,2]
[401215827,1768050640533,-500.0,0.00017973,2]
[401215828,1768050640543,-500.0,0.00017973,2]
[401215829,1768050640553,-500.0,0.00017973,2]
[401215830,1768050640563,-500.0,0.00017973,2]
[401215831,1768050640573,-507.85664462,0.00017973,2]
[401215832,1768050640583,-500.0,0.00017973,2]
[401215833,1768050640593,-500.0,0.00017973,2]
[401215834,1768050640603,-500.0,0.00017973,2]
[401215836,1768050640612,-500.0,0.00017973,2]
[401215838,1768050640621,-500.0,0.00017973,2]
[401215839,1768050640631,-500.0,0.00017973,2]
[401215840,1768050640640,-500.0,0.00017973,2]
[401215841,1768050640649,-500.0,0.00017973,2]
[401215842,1768050640659,-500.0,0.00017973,2]
[401215843,1768050640669,-500.0,0.00017973,2]
[401215844,1768050640679,-500.0,0.00017973,2]
[401215845,1768050640688,-500.0,0.00017973,2]
[401215846,1768050640698,-500.0,0.00017973,2]
[401215847,1768050640708,-500.0,0.00017973,2]
[401215848,1768050640718,-500.0,0.00017973,2]
[401215849,1768050640727,-500.0,0.00017973,2]
[401215850,1768050640736,-500.0,0.00017973,2]
[401215852,1768050640746,-500.0,0.00017973,2]
[401215853,1768050640756,-500.0,0.00017973,2]
[401215854,1768050640766,-500.0,0.00017973,2]
[401215855,1768050640775,-500.0,0.00017973,2]
[401215856,1768050640790,-500.0,0.00017973,2]
[401215857,1768050640800,-500.0,0.00017973,2]
[401215858,1768050640809,-500.0,0.00017973,2]
[401215859,1768050640820,-500.0,0.00017973,2]
[401215860,1768050640830,-500.0,0.00017973,2]
[401215861,1768050640840,-189.97011746,0.00017973,2]
[401215862,1768050640849,-1006.5165,0.00017999,2]
[401215863,1768050640859,-300.0,0.00017999,2]
[401215864,1768050640869,-300.0,0.00017999,2]
[401215865,1768050640878,-11563.77530563,0.00017999,2]
[401215866,1768050640888,-300.0,0.00017999,2]
[401215867,1768050640898,-249.76041872,0.00017999,2]
[401215868,1768050640908,-300.0,0.00017999,2]
[401215869,1768050640918,-666.0,0.00017999,2]
[401215870,1768050640927,-252.12379273,0.00018,2]
[401215871,1768050640937,-2125624.5051824,0.00018,2]
[401215872,1768050642062,-1.7e-07,0.00018,2]
[401215879,1768050645214,-566.0,0.00017704,2]
[401215880,1768050645225,-501.75274024,0.000179,2]
[401215881,1768050645235,-2431.13589373,0.000179,2]
[401215882,1768050645275,-203.31656175,0.000179,2]
[401215883,1768050645285,-9731.2142383,0.00018,2]
[401215884,1768050645328,-313.87756167,0.00018,2]
[401215885,1768050645341,-270.07342636,0.00018,2]
[401215886,1768050645354,-300.0620014,0.00018,2]
[401215887,1768050645366,-449.22,0.00018,2]
[401215888,1768050645383,-12734.22220884,0.00017222,2]
[401215889,1768050645393,-79331.27779116,0.00018,2]
[401215892,1768050646093,-501.75274024,0.000179,2]
[401215893,1768050646103,-399.48607563,0.00018,2]
[401215907,1768050773617,10000.01,0.00014848,2]
[401215908,1768050773647,10000.01,0.00014848,2]
[401215909,1768050773678,10000.01,0.00014848,2]
[401215910,1768050773714,10000.01,0.00014848,2]
[401215911,1768050773745,10000.01,0.00014848,2]
[401215912,1768050773776,10000.01,0.00014848,2]
[401215913,1768050773807,10000.01,0.00014848,2]
[401215914,1768050773837,10000.01,0.00014848,2]
[401215915,1768050773867,10000.01,0.00014848,2]
[401215916,1768050773897,10000.01,0.00014848,2]
[401215917,1768050774421,-721.09252332,0.00014848,2]
[401215918,1768050777229,-600.27004911,0.00014848,2]
[401215919,1768050778742,-319.82522726,0.00014848,2]
[401215920,1768050780757,-166.24661828,0.00014848,2]
[401215921,1768050784074,-168.05451932,0.00014847,2]
[401215922,1768050785266,-131.94548068,0.00014847,2]
[401215923,1768050785295,-67.86234949,0.00014848,2]
[401215924,1768050786814,-211.30371616,0.00014848,2]
[401215925,1768050789366,-368.7166786,0.00014848,2]
[401215926,1768050792035,-162.11424412,0.00014848,2]
[401215927,1768050793594,-172.42187637,0.00014848,2]
[401215928,1768050797535,-255.0,0.00014848,2]
[401215929,1768050799085,-300.0,0.00014848,2]
[401215930,1768050800464,-203.86,0.00014848,2]
[401215931,1768050807961,-1219.52379571,0.00014848,2]
[401215932,1768050811644,-162.68115368,0.00014848,2]
[401215933,1768050813647,-250.0,0.00014848,2]
[401215934,1768050815107,-228.74371566,0.00014848,2]
[401215935,1768050819132,-166.66,0.00014848,2]
[401215936,1768050842525,300.0,0.00014847,2]
[401215937,1768050883623,1084.85121755,0.00014847,5]
[401215938,1768050901249,300.0,0.00014847,2]
[401215939,1768050901321,300.0,0.00014847,2]
[401215940,1768050901489,1200.0,0.00014847,2]
[401215950,1768050926972,1776.93,8.423e-05,2]
[401215951,1768050927160,1776.93,8.849e-05,2]
[401215952,1768050927369,1776.93,9.275e-05,2]
[401215953,1768050927669,1484.36878245,9.701e-05,2]
[401215954,1768050928025,292.56121755,9.701e-05,2]
[401215955,1768050928113,1776.93,0.00010127,2]
[401215956,1768050928182,1776.93,0.00010553,2]
[401215957,1768050928312,1776.93,0.00010979,2]
[401215958,1768050928510,1776.93,0.00011405,2]
[401215959,1768050928699,1776.93,0.00011831,2]
[401215960,1768050928908,822.79878245,0.00012257,2]
[401215961,1768050928943,954.13121755,0.00012257,2]
[401215962,1768050929118,1776.93,0.00012683,2]
[401215963,1768050929317,1776.93,0.00013109,2]
[401215964,1768050929508,1776.93,0.00013534,2]
[401215965,1768050929721,1776.93,0.0001396,2]
[401215966,1768050929943,1776.93,0.00014386,2]
[401215967,1768050930665,161.22878245,0.00014812,2]
[401215968,1768050930689,1615.70121755,0.00014812,2]
[401215969,1768050961343,300.0,0.00014847,2]
[401215980,1768051094096,500.0,0.00014847,2]
[401215981,1768051095225,500.0,0.00014847,2]
[401215982,1768051097476,500.0,0.00014847,2]
[401215983,1768051100456,500.0,0.00014847,2]
[401215984,1768051100523,500.0,0.00014847,2]
[401215985,1768051100813,500.0,0.00014847,2]
[401215986,1768051100857,500.0,0.00014847,2]
[401215987,1768051100896,500.0,0.00014847,2]
[401215988,1768051100936,500.0,0.00014847,2]
[401215989,1768051100976,500.0,0.00014847,2]
[401215990,1768051101020,500.0,0.00014847,2]
[401215991,1768051101059,500.0,0.00014847,2]
[401215992,1768051101099,500.0,0.00014847,2]
[401215993,1768051101142,500.0,0.00014847,2]
[401215994,1768051101184,500.0,0.00014847,2]
[401215995,1768051101256,500.0,0.00014847,2]
[401215996,1768051101313,500.0,0.00014847,2]
[401215997,1768051101364,500.0,0.00014847,2]
[401215998,1768051101420,500.0,0.00014847,2]
[401215999,1768051101473,200.01,0.00014847,2]
[401216000,1768051101502,299.99,0.00014847,2]
[401216001,1768051101559,500.0,0.00014847,2]
[401216002,1768051102032,500.0,0.00014847,2]
[401216003,1768051102081,500.0,0.00014847,2]
[401216004,1768051102130,500.0,0.00014847,2]
[401216005,1768051102197,500.0,0.00014847,2]
[401216006,1768051102260,500.0,0.00014847,2]
[401216007,1768051102306,500.0,0.00014847,2]
[401216008,1768051102359,500.0,0.00014847,2]
[401216009,1768051102412,500.0,0.00014847,2]
[401216010,1768051102460,500.0,0.00014847,2]
[401216011,1768051102516,500.0,0.00014847,2]
[401216012,1768051102566,500.0,0.00014847,2]
[401216013,1768051102620,500.0,0.00014847,2]
[401216014,1768051102711,500.0,0.00014847,2]
[401216015,1768051102764,500.0,0.00014847,2]
[401216016,1768051102810,500.0,0.00014847,2]
[401216017,1768051103542,500.0,0.00014847,2]
[401216018,1768051103597,615.55569976,0.00014847,2]
[401216019,1768051103654,500.0,0.00014847,2]
[401216020,1768051103703,84.46430024,0.00014847,2]
[401216021,1768051103732,415.53569976,0.00014847,2]
[401216022,1768051103793,500.0,0.00014847,2]
[401216023,1768051139702,164.92022812,0.00014795,2]
[401216024,1768051140123,164.92022812,0.00014795,2]
[401216025,1768051141272,300.0,0.00014847,2]
[401216026,1768051201319,300.0,0.00014847,2]
[401216027,1768051201373,1200.0,0.00014847,2]
[401216028,1768051201676,300.0,0.00014847,2]
[401216029,1768051261749,300.0,0.00014847,2]
[401216030,1768051261860,150.0,0.00014847,2]
[401216031,1768051289922,164.92022811,0.00014748,2]
[401216032,1768051293729,1118.954,0.00014551,2]
[401216033,1768051299063,164.92022811,0.00014748,2]
[401216034,1768051299452,-610.2430413,0.00014848,2]
[401216035,1768051302131,-369.9441573,0.00014848,2]
[401216037,1768051303725,-410.11496642,0.00014848,2]
[401216038,1768051305302,-209.66521579,0.00014848,2]
[401216039,1768051307963,-235.66563197,0.00014848,2]
[401216040,1768051315832,-226.09470603,0.00014848,2]
[401216041,1768051317805,-367.03314883,0.00014848,2]
[401216042,1768051319277,-296.10975086,0.00014848,2]
[401216043,1768051321808,300.0,0.00014847,2]
[401216044,1768051321844,-261.80352511,0.00014848,2]
[401216045,1768051324395,-300.0,0.00014848,2]
[401216046,1768051326331,-477.58526062,0.00014848,2]
[401216047,1768051327814,-292.85647842,0.00014848,2]
[401216048,1768051329319,-381.18452425,0.00014848,2]
[401216049,1768051330881,-280.73835114,0.00014848,2]
[401216050,1768051332784,200.0,0.00014848,2]
[401216051,1768051332861,200.0,0.00014848,2]
[401216052,1768051333773,-276.61697368,0.00014848,2]
[401216053,1768051335304,-172.02776457,0.00014848,2]
[401216054,1768051337067,-206.41822793,0.00014848,2]
[401216055,1768051338488,-318.35432012,0.00014848,2]
[401216056,1768051341297,-411.65229957,0.00014848,2]
[401216057,1768051343370,-287.17334878,0.00014848,2]
[401216058,1768051345346,-400.02526674,0.00014848,2]
[401216059,1768051345999,187.78006525,0.00014848,2]
[401216060,1768051347333,-357.13626733,0.00014848,2]
[401216061,1768051349645,-159.25570802,0.00014848,2]
[401216062,1768051351648,-160.16809642,0.00014848,2]
[401216063,1768051355322,-157.9150788,0.00014848,2]
[401216064,1768051356627,3868.05932253,0.00014748,2]
[401216065,1768051356651,350.6039659,0.00014748,2]
[401216066,1768051358014,-167.62014212,0.00014848,2]
[401216067,1768051361205,-500.0,0.00014848,2]
[401216068,1768051362818,-176.73401793,0.00014848,2]
[401216069,1768051365959,-413.83475424,0.00014848,2]
[401216070,1768051367462,-234.10939407,0.00014848,2]
[401216071,1768051368701,222.18749106,0.00014748,2]
[401216072,1768051370813,-250.7578823,0.00014848,2]
[401216073,1768051373457,1291.98732006,0.00014748,2]
[401216074,1768051377686,8135.23122298,0.00014748,2]
[401216075,1768051377714,1233.60707702,0.00014748,2]
[401216076,1768051377801,-170.91286775,0.00014848,2]
[401216077,1768051379296,-200.0,0.00014848,2]
[401216078,1768051381870,-182.4514221,0.00014848,2]
[401216079,1768051383808,-404.0648565,0.00014848,2]
[401216080,1768051385334,-251.97641398,0.00014848,2]
[401216081,1768051387400,-195.0,0.00014848,2]
[401216082,1768051395392,569.0,0.00014847,2]
[401216083,1768051425224,164.92022808,0.00014748,2]
[401216084,1768051434478,164.92022808,0.00014748,2]
[401216085,1768051441394,300.0,0.00014847,2]
[401216086,1768051441862,150.0,0.00014847,2]
[401216087,1768051501258,300.0,0.00014847,2]
[401216088,1768051501473,1200.0,0.00014847,2]
[401216089,1768051533108,1404.4055,0.00014748,2]
[401216090,1768051544738,164.92022807,0.00014748,2]